{"text_format":"3","workbook":"xlsx","n_sheets":13,"sheets":["Início","Noções básicas","Introdução às funções","MÉDIA","MÍNIMO e MÁXIMO","Data e hora","Unir texto e números","Instruções SE","PROCV","Funções condicionais","Assistente de função","Erros de fórmula","Saiba mais"],"not_rendered":{"images":30,"defined_names":21},"read":"whole","date_system":"1900"}

{"sheet":"Início","index":0,"n_rows":4,"n_cols":1,"rows_kept":4}
[]
["Comece a trabalhar com fórmulas"]
["Em poucas etapas você estará pronto para criar fórmulas e funções no Excel, o aplicativo de planilhas mais avançado do mundo."]
["Volte ao início pressionando Ctrl+Home. Para iniciar o tour, pressione Ctrl+Page Down."]

{"sheet":"Noções básicas","index":1,"n_rows":43,"n_cols":10,"rows_kept":43}
["Noções básicas: fazer cálculos no Excel"]
["Você pode somar, subtrair, multiplicar e dividir no Excel sem usar as funções internas. Basta usar alguns operadores básicos: +, -, * e /. Todas as fórmulas começam com um sinal de igual (=).\n",null,"Números a usar:",null,"Operação:","Fórmulas:","Respostas:"]
["Para somar, selecione a célula F3, digite =C3 + C4 e pressione Enter. \n",null,1,null,"Adição (+) ",null,{"$f":"C3+C4","v":3}]
["Para subtrair, selecione a célula F4, digite =C3-C4 e pressione Enter. ",null,2,null,"Subtração (-) ",null,{"$f":"C3-C4","v":-1}]
["Para multiplicar, selecione a célula F5, digite =C3*C4 e pressione Enter.\n",{"$nulls":3},"Multiplicação (*) ",null,{"$f":"C3*C4","v":2}]
["Para dividir, selecione a célula F6, digite =C3/C4 e pressione Enter.\n",{"$nulls":3},"Divisão (/) ",null,{"$f":"C3/C4","v":0.5}]
["Veja só: altere os números nas células C3 e C4 e veja os resultados da fórmula serem alterados automaticamente.",{"$nulls":3},"Potência (^) ",null,{"$f":"C3^C4","v":1}]
["CRÉDITO ADICIONAL: Para elevar um número a determinada potência, use o símbolo de circunflexo (^), como =A1^A2. Para inseri-lo, pressione Shift+~, ao lado da cedilha. Na célula F7, digite =C3^C4."]
["Veja mais detalhes abaixo"]
["Próxima etapa"]
["Saiba mais sobre fórmulas, células e intervalos"]
["O Excel é composto de células individuais que estão agrupadas em linhas e colunas. Linhas são identificadas por números e colunas, por letras. Há mais de 1 milhão de linhas e mais de 16.000 colunas, e você pode colocar fórmulas em qualquer uma delas. \n"]
["As fórmulas podem conter referências a células, a intervalos de células, operadores e constantes. Todos os seguintes são exemplos de fórmulas:\n\n=A1+B1\n=10+20\n=SOMA(A1:A10)\n\n"]
["Você verá que usamos a função SOMA em nosso terceiro exemplo acima. Uma função é um comando previamente criado que pega um valor ou valores, faz determinado cálculo e retorna um resultado. Por exemplo, a função SOMA pega as referências ou intervalos de células especificados, e soma tudo. Neste exemplo, ela pega as células de A1 a A10 e soma. O Excel tem mais de 400 funções, que você pode explorar na guia Fórmulas.\n"]
["Fórmulas com funções começam com um sinal de igual, depois o nome da função seguido de seus argumentos (os valores que uma função usa para calcular) entre parênteses. \n"]
["Confirme uma fórmula pressionando Enter. Quando fizer isso, a fórmula será calculada e o resultado será exibido na célula. Para ver a fórmula em si, você pode olhar na barra de fórmulas, logo abaixo da Faixa de Opções, ou pressionar F2 para entrar no modo de edição, e ver a fórmula na célula. Pressione Enter novamente para finalizar a fórmula e calcular o resultado.\n\n"]
["Algumas explicações sobre fórmulas"]
["\"=10+20\" é uma fórmula em que 10 e 20 são constantes, e o sinal + é o operador."]
["=SOMA(A1:A10) é uma fórmula, em que SOMA é o nome da função, os parênteses de abertura e fechamento contêm os argumentos da fórmula e A1:A10 é o intervalo de células para a função."]
["=SOMA(A1:A10;C1:C10) é uma fórmula, em que SOMA é o nome da função, os parênteses de abertura e fechamento contêm os argumentos da fórmula e A1:A10;C1:C10 são os intervalos de células para a função separados por uma vírgula."]
["É BOM SABER: Constantes são valores inseridos em células ou fórmulas. Apesar de \"=10+20\" oferecer o mesmo cálculo que \"=A1+B1\", constantes não recomendadas. Por quê? Porque você não consegue ver facilmente a constante sem selecionar a célula e procurar o valor. E isso pode ser difícil de alterar posteriormente. É muito mais fácil colocar constantes em células, onde elas podem ser facilmente ajustadas, e fazer referência a elas em suas fórmulas.\n\nPor exemplo: Selecione a célula amarela abaixo que contém o 12. Você verá que usamos a função SOMA com um intervalo de células. Nós não digitamos \"4\" ou \"8\" diretamente na fórmula. \n"]
["Anterior"]
["Avançar"]
["Mais informações na Web"]
["Use o Excel como uma calculadora"]
["Visão geral de fórmulas no Excel"]
["Funções do Excel (por categoria) "]
["Funções do Excel (em ordem alfabética) "]
["Treinamento grátis sobre o Excel online"]
{"$rows_empty":10}
[{"$nulls":9},"Valores"]
[{"$nulls":9},4]
[{"$nulls":9},8]
[{"$nulls":9},{"$f":"SUM(J41:J42)","v":12}]

{"sheet":"Introdução às funções","index":2,"n_rows":51,"n_cols":7,"rows_kept":51}
["Introdução às funções"]
["Funções oferecem a capacidade de fazer uma variedade de coisas, como realizar operações matemáticas, pesquisar valores ou até mesmo calcular datas e horas. Vamos tentar algumas maneiras de somar valores com a função SOMA.",null,"Fruta","Valor",null,"Carne","Valor"]
["Na coluna Valor para Fruta (célula D7), digite =SOMA(D3:D6), ou digite =SOMA( e selecione o intervalo com o mouse, depois pressione Enter. Isso somará os valores nas células D3, D4, D5 e D6. Sua resposta deve ser 170.\n",null,"Maçãs",50,null,"Vaca",50]
["Agora vamos tentar a AutoSoma. Selecione a célula na coluna para Carne (célula G7), acesse Fórmulas > AutoSoma > selecione SOMA. Você verá o Excel inserir automaticamente a fórmula. Pressione Enter para confirmá-la. O recurso AutoSoma tem todas as funções mais comuns.\n",null,"Laranjas",20,null,"Frango",30]
["Eis um atalho de teclado útil. Selecione a célula D15 e pressione Alt = e Enter. Isso insere a função SOMA automaticamente.",null,"Bananas",60,null,"Porco",10]
["Veja mais detalhes abaixo",null,"Limões",40,null,"Peixe",50]
["CRÉDITO ADICIONAL\nExperimente a função CONT.NÚM usando qualquer um dos métodos que você já tentou. A função CONT.NÚM conta o número de células em um intervalo que contém números.",null,"SOMA > ",{"$f":"SUM(D3:D6)","v":170},null,"SOMA > "]
["Próxima etapa"]
["Mais sobre funções",null,"Item","Montante",null,"Item","Valor"]
["Vá para a guia Fórmulas e navegue pela Biblioteca de Funções, em que as funções são listadas por categoria, como Texto, Data e Hora, etc. Inserir Função possibilita pesquisar as funções por nome e iniciar um Assistente de função que pode ajudá-lo a criar sua fórmula. \n\nQuando você começa a digitar um nome de função depois de pressionar =, o Excel inicia o Intellisense, que lista todas as funções que começam com as letras que você está digitando. Quando você encontrar a fórmula desejada, pressione Tab e o Excel automaticamente conclui o nome da função e insere o parêntese de abertura. Ele também exibe os argumentos opcionais e obrigatórios. \n\n\n\nAgora vamos observar a anatomia de algumas funções. A função SOMA é estruturada assim:",null,"Pão",50,null,"Pão",50]
["Se a função SOMA pudesse falar, diria: retorne a soma de todos os valores nas células D35 a D38 e de todos os valores na coluna H. SOMA é o nome da função D35:D38 é o primeiro argumento de intervalo, que quase sempre é necessário, e H:H é o segundo argumento de intervalo; os argumentos estão separados por uma vírgula. Agora, vamos tentar uma fórmula que não requer argumentos.\n",null,"Roscas",100,null,"Roscas",100]
["A função HOJE retorna a data de hoje. Ela será atualizada automaticamente quando o Excel recalcular.",null,"Biscoitos",40,null,"Biscoitos",40]
["VEJA ISTO\nSelecione essas células. Em seguida, no canto inferior direito da janela do Excel, procure por SOMA: 170 na barra inferior. Isso é chamado de barra de status e é apenas outra maneira de localizar rapidamente um total e outros detalhes sobre uma célula ou intervalo selecionados. ",null,"Bolos",50,null,"Bolos",50]
["DETALHE IMPORTANTE\nClique duas vezes nessa célula. Você observará 100 próximo ao fim. Embora seja possível colocar números em uma fórmula como esta, não é recomendável, a menos que seja absolutamente necessário. Isso é conhecido como uma constante, e é fácil esquecer que está presente. É recomendável fazer referência a outra célula ao invés disso, como a célula F51. Assim, ela é vista facilmente e não é ocultada em uma fórmula. ",null,"Tortas",20,null,"Tortas",20]
["Mais informações na Web",null,"SOMA > ",null,null,"CONT.NÚM >"]
["Tudo sobre a função SOMA"]
["Usar a AutoSoma para somar números"]
["Tudo sobre a função CONT.NÚM"]
["Treinamento grátis sobre o Excel online"]
["Voltar ao início"]
["Próxima etapa"]
{"$rows_empty":12}
[null,null,"Fruta","Montante"]
[null,null,"Maçãs",50]
[null,null,"Laranjas",20]
[null,null,"Bananas",60]
[null,null,"Limões",40]
[null,null,"SOMA > ",{"$f":"SUM(D35:D38)","v":170}]
[]
[]
[]
[]
[null,null,"Item","Valor"]
[null,null,"Carros",20]
[null,null,"Caminhões",10]
[null,null,"Bicicletas",10]
[null,null,"Skates",40]
[]
[{"$nulls":3},"Total:",null,"Valor adicional","Novo total"]
[{"$nulls":3},{"$f":"SUM(D45:D48,100)","v":180},null,100,{"$f":"SUM(D45:D48,F51)","v":180}]

{"sheet":"MÉDIA","index":3,"n_rows":15,"n_cols":7,"rows_kept":15}
["Função MÉDIA"]
["Use a função MÉDIA para obter a média dos números em um intervalo de células.",null,"Fruta","Valor",null,"Carne","Valor"]
["Selecione a célula D7 e use a AutoSoma para adicionar uma função MÉDIA.",null,"Maçãs",50,null,"Vaca",50]
["Agora selecione a célula G7 e insira uma função MÉDIA digitando =MÉDIA(G3:G6). ",null,"Laranjas",20,null,"Frango",30]
["Na célula D15, você pode usar a AutoSoma ou digitar para inserir outra função MÉDIA. ",null,"Bananas",60,null,"Porco",10]
["VEJA ISTO\nSelecione qualquer intervalo de números e procure uma Média instantânea na barra de status.\n",null,"Limões",40,null,"Peixe",50]
["Ativar a planilha anterior",null,"MÉDIA >",null,null,"MÉDIA >"]
["Avançar para a próxima planilha"]
["CRÉDITO ADICIONAL\nTente usar MED ou MODO aqui. \n\nMED retorna o valor médio do conjunto de dados, enquanto \nMODO retorna o valor que aparece com mais frequência.\n",null,"Item","Valor",null,"Item","Valor"]
["Links para saber mais na Web",null,"Pão",50,null,"Pão",50]
["Selecione para aprender tudo sobre a função MÉDIA na Web",null,"Roscas",100,null,"Roscas",100]
["Selecione para aprender tudo sobre a função MED na Web",null,"Biscoitos",40,null,"Biscoitos",40]
["Selecione para aprender tudo sobre a função MODO na Web",null,"Bolos",50,null,"Bolos",50]
["Selecione para aprender sobre o treinamento de Excel online e gratuito na Web",null,"Tortas",20,null,"Tortas",20]
[null,null,"MÉDIA >"]

{"sheet":"MÍNIMO e MÁXIMO","index":4,"n_rows":15,"n_cols":7,"rows_kept":15}
["Funções MÍNIMO e MÁXIMO"]
["Use a função MÍNIMO para obter o menor número em um intervalo de células.",null,"Fruta","Valor",null,"Carne","Valor"]
["Use a função MÁXIMO para obter o maior número em um intervalo de células.",null,"Maçãs",50,null,"Vaca",50]
["Selecione a célula D7 e use o Assistente de AutoSoma para adicionar a função MÍNIMO.\n",null,"Laranjas",20,null,"Frango",30]
["Agora selecione a célula G7 e insira uma função MÁXIMO digitando =MÁXIMO(G3:G6).\n",null,"Bananas",60,null,"Porco",10]
["Na célula D15, você pode usar o Assistente de AutoSoma ou digitar para inserir uma função MÍNIMO ou MÁXIMO. \n",null,"Limões",40,null,"Peixe",50]
["Mais informações na Web\n",null,"MÍNIMO >",null,null,"MÁXIMO >"]
["Tudo sobre a função MÍNIMO"]
["Tudo sobre a função MÁXIMO",null,"Item","Valor",null,"Item","Valor"]
["Treinamento grátis sobre o Excel online",null,"Pão",50,null,"Pão",50]
["É BOM SABER\nVocê pode usar MÍNIMO ou MÁXIMO com vários intervalos, ou valores, para mostrar o maior ou o menor desses valores, como em =MÍNIMO(A1:A10;B1:B10) ou =MÁXIMO(A1:A10;B1), em que B1 contém um valor limite, como 10; nesse caso, a fórmula nunca retornaria um resultado diferente de 10.\n",null,"Roscas",100,null,"Roscas",100]
[null,null,"Biscoitos",40,null,"Biscoitos",40]
[null,null,"Bolos",50,null,"Bolos",50]
[null,null,"Tortas",20,null,"Tortas",20]
[null,null,"MÍNIMO ou MÁXIMO >",{"$nulls":3},{"$f":"MIN(G10:G14,10)","v":10}]

{"sheet":"Data e hora","index":5,"n_rows":47,"n_cols":6,"rows_kept":47,"merged":[[4,2,4,3],[26,2,26,3],[30,2,30,3],[44,2,44,3]]}
["Funções de data"]
["O Excel pode fornecer a data atual com base nas configurações regionais do seu computador. Você também pode somar e subtrair datas."]
["Veja a função HOJE, que fornece a data de hoje. Estas são funções dinâmicas ou voláteis, então, ao abrir sua pasta de trabalho amanhã, você verá a data de amanhã. Digite =HOJE() na célula D6. \n"]
["Subtrair datas: digite o seu próximo aniversário no formato DD/MM/AA na célula D7 e veja o Excel calcular quantos dias ainda faltam para esse dia usando =D7-D6 e colocar o resultado na célula D8.\n"]
["Somar datas: digamos que você deseja saber em qual dia determinada conta vence ou quando precisa retornar um livro para a biblioteca. Você pode somar dias a uma data para descobrir. Na célula D10, digite um número aleatório de dias. Na célula D11 somamos =D6+D10 para calcular a data de entrega a partir de hoje.\n",null,"Funções de data"]
["É BOM SABER\nO Excel calcula as datas e horas com base no número de dias desde 1º de janeiro de 1900. As horas são calculadas em partes fracionárias de um dia com base em minutos. Portanto, 01/01/2017 12:30 na verdade é armazenado como 42736,5208. Se a Hora ou a Data aparecem como números fracionários, pressione Ctrl+1, selecione e escolha um formato de data ou hora. ",null,"Data de hoje:",null,null,{"$f":"IF(D6=TODAY(),\"Isso aí!\",\"\")","v":""}]
["DETALHE IMPORTANTE\nSe não deseja que o Excel exiba um número negativo porque você ainda não inseriu seu aniversário, use uma função SE como esta: =SE(D7=\"\";\"\";D7-D6), que significa: \"SE D7 for igual a nada, mostre nada, caso contrário, mostre D7 menos D6\".\n",null,"Seu aniversário:"]
["Funções de hora",null,"Dias até o seu aniversário:",{"$f":"D7-D6","v":0}]
["O Excel pode fornecer a hora atual com base nas configurações regionais do seu computador. Você também pode somar e subtrair horas. Por exemplo, talvez seja necessário controlar quantas horas um funcionário trabalhou por semana e calcular o pagamento e as horas extras.\n"]
["Na célula D28, digite =AGORA(), que fornecerá a hora atual e será atualizada sempre que o Excel fizer um cálculo. Se você precisar alterar o formato de hora, acesse Ctrl+1 > Número > Hora e escolha o formato desejado.\n",null,"Dias no período de carência:"]
["Somar horas entre outras horas: na célula D36 inserimos =((D35-D32)-(D34-D33))*24, que calcula as horas de trabalho de início e fim para uma pessoa e, em seguida, subtrai o tempo que levou para almoçar. O \"*24\" no final da fórmula converte a parte fracionária do dia que o Excel vê em horas. No entanto, você ainda precisará formatar a célula como Número. Para fazer isso, vá para Página Inicial > Formatar > Células (Ctrl+1) > Número > Número > 2 casas decimais.\n\n",null,"Vencimento da conta em:",{"$f":"D6+D10","v":"00:00:00"}]
["Se essa fórmula pudesse falar, diria: \"Subtraia Hora de Saída de Hora de Entrada, depois subtraia Início do Almoço de Término do Almoço, em seguida multiplique o resultado por 24 para converter a hora fracionária do Excel em horas\", ou =((Hora de Saída-Hora de Entrada)-(Término do Almoço-Início do Almoço))*24."]
["Anterior"]
["Avançar"]
["Mais informações na Web"]
["Tudo sobre a função HOJE"]
["Tudo sobre a função AGORA"]
["Tudo sobre a função DATA"]
["Treinamento grátis sobre o Excel online"]
{"$rows_empty":7}
[null,null,"Funções de hora"]
[null,null,"Hora atual:"]
[]
[]
[null,null,"Horas diárias trabalhadas"]
[null,null,"Hora de Entrada:","08:00:00"]
[null,null,"Início do Almoço:","12:00:00"]
[null,null,"Término do Almoço:","13:00:00"]
[null,null,"Hora de Saída:","17:00:00"]
[null,null,"Total de horas:",{"$f":"((D35-D32)-(D34-D33))*24","v":8.000000000000002}]
{"$rows_empty":8}
[null,null,"Data e hora estáticas"]
[null,null,"Data:","2017-09-27"]
[null,null,"Hora:","08:52:00"]

{"sheet":"Unir texto e números","index":6,"n_rows":37,"n_cols":6,"rows_kept":37,"merged":[[26,2,26,3],[30,2,30,3],[34,2,34,3]]}
["Unir texto de células diferentes"]
["Há muitas vezes que você quer unir texto no Excel que está em células diferentes. Este exemplo é muito comum, casos em que você tem nomes e sobrenomes e deseja combinar como Nome, Sobrenome ou como Nome completo. Felizmente, o Excel nos permite fazer isso com o símbolo E comercial (&), que você pode inserir com Shift+7.\n",null,"Nome","Sobrenome","Sobrenome, Nome","Nome completo"]
["Na célula E3, digite =D3&C3 para unir o sobrenome e o nome. \n",null,"Lara","Cardoso",{"$f":"D3&\", \"&C3","v":"Cardoso, Lara"},{"$f":"C3&\" \"&D3","v":"Lara Cardoso"}]
["CardosoLara não soa muito bem, não é? É necessário adicionar uma vírgula e um espaço. Para fazer isso, usaremos aspas para criar uma nova cadeia de texto. Desta vez, digite =D3&\";\"&C3. A parte & \",\" & permite colocar uma vírgula e um espaço com o texto nas células.\n",null,"Paulo","Araújo"]
["Para criar o nome completo, uniremos o nome e o sobrenome, mas usaremos um espaço sem a vírgula. Na célula F3, digite =C3&\" \"&D3.\n",null,"Brenda","Fernandes"]
["Veja mais detalhes abaixo",null,"Mila","Moraes"]
["Avançar",null,"Nicolau","Mendes"]
["Usar texto e números juntos",null,"Pedro","Gonçalves"]
["Agora vamos usar o & para unir texto e números, não apenas para texto e texto\n\nVeja as células C28:D29. Vê como a data e as horas estão em células separadas? Você pode uni-las com o símbolo &, como verá nas células C32:C33, mas ainda não parece correto, não é? Infelizmente, o Excel não sabe como você deseja formatar números, então ele os separa de acordo com seu formato, que neste caso é a data serial. Precisamos dizer explicitamente ao Excel como formatar a parte do número na fórmula, para que ele exiba a forma desejada na cadeia de texto resultante. Você pode fazer isso com a função TEXTO e um código de formatação.",null,"Vinícius","Monte"]
["Na célula C36, digite =C28&\" \"&TEXTO(D28;\"DD/MM/AAAA\"). DD/MM/AAAA é o código de formatação brasileiro para dia/mês/ano, como 25/09/2017.\n",null,"Maria Eduarda","Schmidt"]
["Na célula C37, digite =C29&\" \"&TEXTO(D29;\"H:MM\"). H:MM é o código de formatação brasileiro para Horas:Minutos, com as horas no formato de 24 horas, tal como 13:30.\n\n"]
["VEJA ISTO\nFórmulas, especialmente as grandes, podem às vezes ser difíceis de ler, mas você pode dividi-las com espaços, assim:\n\n=C28 & \" \" & TEXTO(D28;\"DD/MM/AAAA\")"]
["VALE A PENA EXPLORAR\nSe você não sabe qual código de formatação usar, use Ctrl+1 > Número para formatar qualquer célula da maneira desejada. Em seguida, selecione a opção Personalizado. Você pode copiar o código de formatação que é exibido para sua fórmula."]
["Mais informações na Web"]
["Tudo sobre a função TEXTO"]
["Combinar texto e números"]
["Treinamento grátis sobre o Excel online"]
{"$rows_empty":9}
[null,null,"Usar texto e números"]
[null,null,"Data de hoje:",{"$f":"TODAY()","v":"2021-10-19"}]
[null,null,"Hora atual:",{"$f":"NOW()","v":44488.45517569444}]
[]
[null,null,"Unir texto e números"]
[null,null,{"$f":"C28&\" \"&D28","v":"Data de hoje: 44488"}]
[null,null,{"$f":"C29&\" \"&D29","v":"Hora atual: 44488.4551756944"}]
[]
[null,null,"Formatar texto e números"]
[null,null,{"$f":"C28 &\" \"& TEXT(D28,\"DD/MM/AAAA\")","v":"Data de hoje: 19/10/Tuesday"}]
[null,null,{"$f":"C29&\" \"&TEXT(D29,\"H:MM\")","v":"Hora atual: 10:55"}]

{"sheet":"Instruções SE","index":7,"n_rows":37,"n_cols":6,"rows_kept":37,"merged":[[7,2,7,3]]}
["Instruções SE"]
["Instruções SE possibilitam que você faça comparações lógicas entre condições. Uma instrução SE geralmente diz o seguinte: se uma condição é verdadeira, faça tal coisa; caso contrário, faça outra coisa. As fórmulas podem retornar texto, valores ou ainda mais cálculos."]
["Na célula D9, insira =SE(C9=\"Maçã\";VERDADEIRO;FALSO). A resposta correta é VERDADEIRO. \n"]
["Copie o conteúdo de D9 para D10. A resposta aqui deve ser FALSO, já que Laranja não é Maçã.\n"]
["Tente outro exemplo; veja a fórmula na célula D12. Você começou com =SE(C12<100;\"Menor que 100\";\"Maior ou igual a 100\"). O que acontece se você inserir um número maior do que 100 na célula C12?\n"]
["DETALHE IMPORTANTE\nVERDADEIRO e FALSO são diferentes de outras palavras em fórmulas do Excel, porque não precisam estar entre aspas, e o Excel as coloca automaticamente em maiúsculas. Os números também não precisam estar entre aspas. Texto normal, como Sim ou Não, precisam estar entre aspas, assim: \n=SE(C9=\"Maçã\",\"Sim\",\"Não\")"]
["Veja mais detalhes abaixo"]
["Avançar",null,"Instruções SE"]
["Instrução SE com outra função",null,"Maçã"]
["Instruções SE também podem forçar a realização de cálculos adicionais se uma determinada condição for atendida. Aqui, vamos avaliar uma célula para ver se o Imposto sobre vendas deve ser cobrado e calcular se a condição é verdadeira.\n",null,"Laranja"]
["Na célula F33, digitamos =SE(E33=\"Sim\";F31*ImpostoSobreVendas;0), onde definimos o Imposto sobre vendas como um Intervalo nomeado com um valor de 0,0825. Nossa fórmula diz que se a célula E33 é igual a Sim, então multiplique a célula F31 por Imposto sobre vendas, caso contrário, retorne 0.\n\nTente alterar Sim para Não na célula E33 para ver o cálculo mudar."]
["Em seguida, adicionamos uma instrução SE para calcular o envio, se ele for obrigatório. Na célula F35 você verá =SE(E35=\"Sim\";SOMA(D28:D29)*1,25;0). A fórmula significa que: se a célula E35 é Sim, faça a soma da coluna Quantidade na tabela acima e multiplique o resultado por 1,25; caso contrário, retorne 0.\n",null,50,{"$f":"IF(C12<100,\"Menor que 100\",\"Maior ou igual a 100\")","v":"Menor que 100"}]
["Em seguida, altere 1,25 na fórmula da célula F35 para \"Remessa\". Enquanto você digita, a correção automática do Excel deve encontrar a palavra para você. Quando isso acontecer, pressione Tab para inseri-la. Esse é um Intervalo nomeado e podemos inseri-lo a partir de Fórmulas > Definir Nome. Agora, se você precisar alterar o custo de envio das mercadorias, você só precisa fazer isso em um lugar e pode usar o nome Remessa em qualquer lugar na pasta de trabalho.\n\n"]
["É BOM SABER\nAo criar uma fórmula, o Excel coloca automaticamente bordas coloridas ao redor de quaisquer intervalos presentes na fórmula, e os intervalos correspondentes na fórmula ficarão na mesma cor. Você pode ver isto se selecionar a célula F33 e pressionar F2 para editar a fórmula."]
["DICA ESPECIALIZADA\nIntervalos nomeados possibilitam definir os termos ou valores em um único local e reutilizá-los em toda a pasta de trabalho. Você pode ver todos os intervalos nomeados nesta pasta de trabalho acessando Fórmulas > Gerenciador de Nomes. Clique aqui para saber mais\n"]
["Anterior"]
["Avançar"]
["Mais informações na Web"]
["Tudo sobre a função SE"]
["Tudo sobre a função SES"]
["Instruções SE avançadas"]
["Treinamento grátis sobre o Excel online"]
[]
[]
[]
[]
[null,null,"Item","Quantidade","Custo","Total"]
[null,null,"Widget",2,{"v":9.760711585683554,"d":"R$ 9.76"},{"$f":"'Instruções SE'!$E$28:$E$29*'Instruções SE'!$D$28:$D$29","v":{"v":19.521423171367108,"d":"R$ 19.52"}}]
[null,null,"Geringonça",3,{"v":3.4189202461080024,"d":"R$ 3.42"},{"$f":"'Instruções SE'!$E$28:$E$29*'Instruções SE'!$D$28:$D$29","v":{"v":10.256760738324008,"d":"R$ 10.26"}}]
[]
[{"$nulls":3},"Subtotal",{"$f":"SUM('Instruções SE'!$E$28:$E$29)","v":{"v":13.179631831791557,"d":"R$ 13.18"}},{"$f":"SUM('Instruções SE'!F28:F29)","v":{"v":29.778183909691116,"d":"R$ 29.78"}}]
[]
[{"$nulls":3},"Imposto sobre vendas?","Sim",{"$f":"IF(E33=\"Sim\",F31*ImpostoSobreVendas,0)","v":{"v":2.456700172549517,"d":"R$ 2.46"}}]
[]
[{"$nulls":3},"Remessa?","Sim",{"$f":"IF(E35=\"Sim\",SUM(D28:D29)*1.25,0)","v":{"v":6.25,"d":"R$ 6.25"}}]
[]
[{"$nulls":3},"Total",null,{"$f":"SUM(F33,F31,F35)","v":{"v":38.48488408224063,"d":"R$ 38.48"}}]

{"sheet":"PROCV","index":8,"n_rows":43,"n_cols":7,"rows_kept":43}
["PROCV"]
["PROCV é uma das funções mais utilizadas no Excel (e uma de nossas favoritas também!). PROCV possibilita pesquisar um valor em uma coluna à esquerda e, em seguida, retorna informações em outra coluna à direita se encontrar uma correspondência. PROCV diz:\n"]
["=PROCV(A1;B:C;2;FALSO)"]
["O que você gostaria de procurar?"]
["Se encontrar, a quantas colunas à direita está o valor a obter?"]
["Onde você gostaria de procurar?"]
["Você deseja uma correspondência exata ou aproximada?"]
["Na célula D22, digite =PROCV(C22;C17:D20;2;FALSO). A resposta correta para Maçãs é 50. PROCV procurou por Maçãs, encontrou e foi para a coluna à direita e retornou o valor.\n\n"]
["Experimente agora na seção Carne, na célula G22. Você deve ficar com a fórmula =PROCV(F22;F17:G20;2;FALSO).\n\n"]
["EXPERIMENTO\nTente selecionar diferentes itens nas listas suspensas. Você verá as células de resultado mudarem instantaneamente com novos valores."]
["Veja mais detalhes abaixo"]
["Avançar"]
["PROCV e #N/D"]
["Invariavelmente, você se deparará com uma situação em que PROCV não consegue encontrar o solicitado e retorna um erro (#N/D). Às vezes, é porque o valor de pesquisa simplesmente não existe ou porque a célula de referência ainda não tem um valor.\n"]
["Se você souber que o valor de pesquisa existe, mas deseja ocultar o erro se a célula de pesquisa estiver vazia, pode usar uma instrução SE. Nesse caso, vamos colocar nossa fórmula PROCV existente desta forma na célula D43:\n\n=SE(C43=\"\";\"\";PROCV(C43;C37:D41;2;FALSO))\n\nIsso informa que se a célula C43 é igual a nada (\"\"), retorne nada, caso contrário, retorne os resultados de PROCV. Observe o segundo parêntese de fechamento no final da fórmula. Isso fecha a instrução SE.\n"]
["Se não tiver certeza de que o valor de pesquisa existe, mas ainda assim deseja suprimir o erro #N/D, é possível usar uma função de tratamento de erros chamada SEERRO na célula G43: =SEERRO(PROCV(F43;F37:G41;2;FALSO);\"\"). SEERRO informa que se a função PROCV retorna um resultado válido, exiba este resultado, caso contrário, não exiba nada (\"\"). Aqui exibimos nada (\"\"), mas você também pode usar números (0,1, 2, etc.), ou um texto, como \"A fórmula não está correta\".\n",null,"Fruta","Valor",null,"Carne","Valor"]
["DETALHE IMPORTANTE\nSEERRO é conhecida como uma função de tratamento de erros, ou seja, ela suprime todos os erros que sua fórmula pode gerar. Isso pode causar problemas se o Excel oferecer uma notificação de que sua fórmula tem um erro legítimo precisa ser corrigido.\n\nUma prática comum é não adicionar funções de tratamento de erros em suas fórmulas até ter certeza absoluta de que elas funcionam corretamente.",null,"Maçãs",50,null,"Vaca",50]
["Anterior",null,"Laranjas",20,null,"Frango",30]
["Avançar",null,"Bananas",60,null,"Porco",10]
["Mais informações na Web",null,"Limões",40,null,"Peixe",50]
["Tudo sobre a função PROCV"]
["Tudo sobre as funções ÍNDICE/CORRESP",null,"Maçãs",null,null,"Porco"]
["Tudo sobre a função SEERRO"]
["Usar as Tabelas Dinâmicas para analisar dados de planilha"]
["Treinamento grátis sobre o Excel online"]
{"$rows_empty":9}
[null,null,"Se a função SOMA na célula D42 pudesse falar, diria isso: Some os valores nas células D38, D39, D40 e D41."]
[null,null,"Item","Valor",null,"Item","Valor"]
[null,null,"Pão",50,null,"Pão",50]
[null,null,"Roscas",100,null,"Roscas",100]
[null,null,"Biscoitos",40,null,"Biscoitos",40]
[null,null,"Bolos",50,null,"Bolos",50]
[null,null,"Tortas",20,null,"Tortas",20]
[]
[{"$nulls":3},{"$f":"VLOOKUP(C43,C37:D41,2,FALSE)","v":{"$error":"#N/A"}},null,"Massas",{"$f":"IFERROR(VLOOKUP(F43,F37:G41,2,FALSE),\"\")","v":""}]

{"sheet":"Funções condicionais","index":9,"n_rows":123,"n_cols":34,"rows_kept":123}
["Funções condicionais: SOMASE"]
["Funções condicionais possibilitam calcular a soma, a média, fazer a contagem ou obter o mínimo ou o máximo de um intervalo com base em uma determinada condição ou critérios especificados por você. Tais como: de todas as frutas na lista, quantas são maçãs? Ou, quantas laranjas são do tipo laranja da Bahia?",null,"Fruta","Valor",null,"Fruta","Tipo","Valor",{"$nulls":17},"Fruta",null,"Maçãs",null,"Laranjas",null,"Bananas",null,"Limões"]
["SOMASE permite somar em um intervalo com base em critérios específicos usados em outro intervalo, como quantas maçãs você tem. Selecione a célula D17 e digite =SOMASE(C3:C14;C17;D3:D14). A função SOMASE é estruturada assim:",null,"Maçãs",50,null,"Maçãs","Fuji",50,{"$nulls":17},"Maçãs",null,"Fuji",null,"da Bahia",null,"D’água",null,"Cravo"]
["=SOMASE(C3:C14;C17;D3:D14)",null,"Laranjas",20,null,"Laranjas","da Bahia",20,{"$nulls":17},"Laranjas",null,"Gala",null,"Seleta",null,"Ouro",null,"Siciliano"]
["Qual intervalo você deseja examinar?",null,"Bananas",60,null,"Bananas","D’água",60,{"$nulls":17},"Bananas"]
["Que valor (texto ou número) você deseja procurar?",null,"Limões",40,null,"Limões","Cravo",40,{"$nulls":17},"Limões"]
["Para cada correspondência encontrada, a qual intervalo você deseja somar?",null,"Maçãs",50,null,"Maçãs","Gala",50]
["SOMASES é o mesmo que SOMASE, mas permite que você use vários critérios. Portanto, neste exemplo você pode procurar Frutas e Tipo, ao invés de apenas por Fruta. Selecione a célula H17 e digite =SOMASES(H3:H14;F3:F14;F17;G3:G14;G17). A função SOMASES é estruturada assim:\n",null,"Laranjas",20,null,"Laranjas","Seleta",20]
["=SOMASES(H3:H14;F3:F14;F17;G3:G14;G17)",null,"Bananas",60,null,"Bananas","Ouro",60]
["Qual intervalo você deseja somar?",null,"Limões",40,null,"Limões","Siciliano",40]
["Este é o primeiro intervalo a ser examinado por correspondências",null,"Maçãs",50,null,"Maçãs","Gala",50]
["Estes são os critérios para a primeira correspondência",null,"Laranjas",20,null,"Laranjas","Seleta",20]
["Este é o segundo intervalo a ser examinado por correspondências",null,"Bananas",60,null,"Bananas","D’água",60]
["Estes são os critérios para a segunda correspondência",null,"Limões",40,null,"Limões","Siciliano",40]
["DICA ESPECIALIZADA\nCada uma das células de Frutas e Tipo tem uma lista suspensa, em que é possível selecionar diferentes frutas. Experimente e observe as fórmulas atualizarem automaticamente."]
["Veja mais detalhes abaixo",null,"Fruta","SOMASE",null,"Fruta","Tipo","SOMASES"]
["Próxima etapa",null,"Maçãs",null,null,"Laranjas","da Bahia"]
["Funções condicionais: CONT.SE"]
["CONT.SE e CONT.SES possibilitam contar valores em um intervalo com base em critérios que você especifica. Elas são um pouco diferentes de outras funções SE e SES, já que possuem apenas um intervalo de critérios e critérios. Elas não avaliam um intervalo e procuram em outro para resumir."]
["Selecione a célula D64 e digite =CONT.SE(C50:C61;C64). A função CONT.SE é estruturada assim:"]
["=CONT.SE(C50:C61;C64)"]
["Qual intervalo você deseja examinar?"]
["Que valor (texto ou número) você deseja procurar?"]
["CONT.SES é o mesmo que CONT.SE, mas permite que você use vários critérios. Portanto, neste exemplo você pode procurar Frutas e Tipo, ao invés de apenas por Fruta. Selecione a célula H64 e digite =CONT.SES(F50:F61;F64;G50:G61;G64). A função CONT.SES é estruturada assim:\n"]
["=CONT.SES(F50:F61;F64;G50:G61;G64)"]
["Este é o primeiro intervalo a contar"]
["Estes são os critérios para a primeira correspondência"]
["Este é o segundo intervalo a contar"]
["Estes são os critérios para a segunda correspondência"]
["Veja mais detalhes abaixo"]
["Avançar"]
["Mais funções condicionais"]
["Você já viu as funções SOMASE, SOMASES, CONT.SE e CONT. SES. Agora você pode experimentar outras funções, como MÉDIASE/S, MÁXIMOSES e MÍNIMOSES. Elas são estruturados da mesma forma, então após criar uma fórmula, apenas substitua o nome da função pela opção desejada. Escrevemos todas as funções que serão necessárias para a célula E106, para que você possa copiar e colar, ou tente inseri-las por conta própria para praticar.\n\nSOMASE \t=SOMASE(C92:C103;C106;E92:E103) \nSOMASES \t=SOMASES(E92:E103;C92:C103;C106;D92:D103;D106) \nMÉDIASE \t=MÉDIASE(C92:C103;C106;E92:E103) \nMÉDIASES\t=MÉDIASES(E92:E103;C92:C103;C106;D92:D103;D106)\nCONT.SE \t=CONT.SE(C92:C103;C106)\nCONT.SES \t=CONT.SES(C92:C103;C106;D92:D103;D106) \nMÁXIMOSES \t=MÁXIMOSES(E92:E103;C92:C103;C106;D92:D103;D106)\nMÍNIMOSES \t=MÍNIMOSES(E92:E103;C92:C103;C106;D92:D103;D106)"]
["Veja mais detalhes abaixo"]
["Avançar"]
["SOMASE com um argumento de valor"]
["Este é um exemplo de como a função SOMASE usa \"maior que\" (>) para encontrar todos os valores maiores que um determinado valor:"]
[{"$f":"SUMIF(D118:D122,\">=50\")","v":200}]
["Some alguns valores com base neste critério:"]
["Examine estas células...\n "]
["e se o valor for maior que 50, some-o.\n "]
["OBSERVAÇÃO: se você achar que está usando muitas fórmulas condicionais, talvez considere uma Tabela Dinâmica como a melhor solução. Consulte este artigo sobre Tabela Dinâmica para saber mais."]
["Mais informações na Web"]
["Tudo sobre a função SOMASE"]
["Tudo sobre a função SOMASES"]
["Tudo sobre a função CONT.SE"]
["Tudo sobre a função CONT.SES"]
["Tudo sobre a função MÉDIASE"]
["Tudo sobre a função MÉDIASES",null,"Fruta","Valor",null,"Fruta","Tipo","Valor"]
["Tudo sobre a função MÍNIMOSES",null,"Maçãs",50,null,"Maçãs","Fuji",50]
["Tudo sobre a função MÁXIMOSES",null,"Laranjas",20,null,"Laranjas","da Bahia",20]
["Criar uma lista suspensa",null,"Bananas",60,null,"Bananas","D’água",60]
["Treinamento grátis sobre o Excel online",null,"Limões",40,null,"Limões","Cravo",40]
["Voltar ao início",null,"Maçãs",50,null,"Maçãs","Gala",50]
["Avançar",null,"Laranjas",20,null,"Laranjas","Seleta",20]
[null,null,"Bananas",60,null,"Bananas","Ouro",60]
[null,null,"Limões",40,null,"Limões","Siciliano",40]
[null,null,"Maçãs",50,null,"Maçãs","Gala",50]
[null,null,"Laranjas",20,null,"Laranjas","Seleta",20]
[null,null,"Bananas",60,null,"Bananas","D’água",60]
[null,null,"Limões",40,null,"Limões","Siciliano",40]
[]
[null,null,"Fruta","CONT.SE",null,"Fruta","Tipo","CONT.SES"]
[null,null,"Maçãs",{"$f":"COUNTIF(C50:C61,C64)","v":3},null,"Laranjas","da Bahia",{"$f":"COUNTIFS(F50:F61,F64,G50:G61,G64)","v":1}]
{"$rows_empty":26}
[null,null,"Fruta","Tipo","Valor"]
[null,null,"Maçãs","Fuji",50]
[null,null,"Laranjas","da Bahia",20]
[null,null,"Bananas","D’água",60]
[null,null,"Limões","Cravo",40]
[null,null,"Maçãs","Gala",50]
[null,null,"Laranjas","Seleta",20]
[null,null,"Bananas","Ouro",60]
[null,null,"Limões","Siciliano",40]
[null,null,"Maçãs","Gala",50]
[null,null,"Laranjas","Seleta",20]
[null,null,"Bananas","D’água",60]
[null,null,"Limões","Siciliano",40]
[]
[null,null,"Fruta","Tipo","Experimente"]
[null,null,"Limões","Siciliano",{"$f":"AVERAGEIFS(E92:E103,C92:C103,C106,D92:D103,D106)","v":40}]
{"$rows_empty":10}
[null,null,"Item","Valor"]
[null,null,"Pão",50]
[null,null,"Roscas",100]
[null,null,"Biscoitos",40]
[null,null,"Bolos",50]
[null,null,"Tortas",20]
[{"$nulls":3},{"$f":"SUMIF(D118:D122,\">=50\")","v":200}]

{"sheet":"Assistente de função","index":10,"n_rows":14,"n_cols":4,"rows_kept":14}
["Permitir que o Assistente de Função o oriente"]
["Se souber o nome da função desejada, mas não estiver certo sobre como criá-la, você pode usar o Assistente de função para ajudá-lo.\n"]
["Selecione a célula D10 e acesse Fórmulas > Inserir Função > digite PROCV na caixa Procure por uma função e pressione IR. Quando vir PROCV realçada, clique em OK na parte inferior. Ao selecionar uma função na lista, o Excel exibe sua sintaxe.\n"]
["Em seguida, insira os argumentos da função em suas respectivas caixas de texto. Enquanto você digita cada um deles, o Excel os avalia e exibe o resultado, com o resultado final na parte inferior. Ao digitar cada seção, os critérios para cada argumento são listados na parte inferior do formulário. Pressione OK quando terminar e o Excel insere a fórmula.\n\n\n",null,"Fruta","Valor"]
["VEJA ISTO\nVocê deve ficar com a fórmula =PROCV(C10;C5:D8;2;FALSO).",null,"Maçãs",50]
["É BOM SABER\nVocê pode digitar as referências de célula e intervalo ou selecioná-las com o mouse.",null,"Laranjas",20]
["É BOM SABER\nEnquanto você digita a seção de cada argumento, a descrição do argumento é exibida na parte inferior do formulário, acima do resultado da fórmula.\n",null,"Bananas",60]
["Anterior",null,"Limões",40]
["Avançar"]
["Mais informações na Web",null,"Maçãs",{"$f":"VLOOKUP(C10,C5:D8,2,FALSE)","v":50}]
["Visão geral de fórmulas no Excel"]
["Funções do Excel (por categoria)"]
["Funções do Excel (em ordem alfabética)"]
["Treinamento grátis sobre o Excel online"]

{"sheet":"Erros de fórmula","index":11,"n_rows":36,"n_cols":4,"rows_kept":36}
["Corrigir erros de fórmula"]
["Em algum momento você se deparará com uma fórmula que apresenta um erro, e o Excel exibirá #NOME!. Erros podem ser úteis, porque apontam quando algo não está funcionando corretamente, mas pode ser um desafio corrigir. Felizmente, há várias opções que podem ajudar a descobrir a origem do erro e corrigi-lo.\n"]
["Verificação de erros: acesse Fórmulas > Verificação de erros. Isso carregará uma caixa de diálogo que informa a causa geral para o erro específico. Na célula D9, o erro #N/D ocorre porque não há nenhum valor que corresponde a \"Maçã\". Você pode corrigir esse problema usando um valor que existe, suprimir o erro com SEERRO ou ignorá-lo e saber que ele desaparecerá quando você usar um valor que existe.\n",null,"Fruta","Montante"]
["Se você clicar em Ajuda sobre este Erro, um tópico da Ajuda relacionado especificamente à mensagem de erro será exibido. Se você clicar em Mostrar etapas de cálculo, será carregada uma caixa de diálogo Avaliar fórmula.\n",null,"Maçãs",50]
["Sempre que você clica em Avaliar, o Excel o orienta pela fórmula, uma seção por vez. Ele não vai necessariamente dizer por quê o erro ocorre, mas apontará onde está o erro. A partir daí, veja o tópico da Ajuda para deduzir o que deu errado na fórmula.\n",null,"Laranjas",20]
["EXPERIMENTO\nO que há de errado aqui? Dica: estamos tentando fazer a SOMA de todos os itens.",null,"Bananas",60]
["É BOM SABER\nAo clicar em Opções, é possível definir as regras para quando os erros no Excel são exibidos ou ignorados.\n",null,"Limões",40]
["Anterior"]
["Avançar",null,"Maçã",{"$f":"VLOOKUP(C9,C3:D7,2,FALSE)","v":{"$error":"#N/A"}}]
["Mais informações na Web"]
["Detectar erros em fórmulas"]
["Como evitar fórmulas quebradas"]
["Avalie uma fórmula aninhada uma etapa por vez"]
["Treinamento grátis sobre o Excel online"]
{"$rows_empty":15}
[null,null,"Fruta","Valor"]
[null,null,"Maçãs",50]
[null,null,"Laranjas",20]
[null,null,"Bananas",60]
[null,null,"Limões",40]
[]
[null,null,"Total",{"$f":"sume(D31:D34)","v":{"$error":"#NAME?"}}]

{"sheet":"Saiba mais","index":12,"n_rows":5,"n_cols":1,"rows_kept":5}
["Mais dúvidas sobre o Excel?"]
["Pressione Alt+Q e digite o que você deseja saber."]
["Vá em frente. Há muito mais para aprender com o Excel:"]
["Comunidade: Faça perguntas e conecte-se com outros fãs do Excel.\n"]
["Quais são as outras novidades?\nOs assinantes do Office 365 recebem atualizações contínuas e novos recursos.\n\n"]